fUST/lending_fUST_20250109
["ID","MTS","AMOUNT","RATE_DAILY","PERIOD"]
[348231424,1736406649628,-500.0,0.00019299,3]
[348231425,1736406649638,-500.0,0.00019299,3]
[348231426,1736406649647,-206.14495501,0.00019299,3]
[348231427,1736406649657,-6782.82344081,0.00019299,2]
[348231428,1736406649669,-9164.97655919,0.00019299,2]
[348231429,1736406649678,-500.0,0.00019299,3]
[348231430,1736406649688,-1434.79,0.00019299,3]
[348231431,1736406649697,-500.0,0.00019299,3]
[348231432,1736406649707,-500.0,0.00019299,3]
[348231433,1736406649716,-500.0,0.00019299,3]
[348231434,1736406649725,-500.0,0.00019299,3]
[348231435,1736406649735,-499.0,0.00019299,2]
[348231436,1736406649744,-500.0,0.00019299,3]
[348231437,1736406649753,-628.2,0.00019299,3]
[348231438,1736406649763,-1058.5,0.00019299,3]
[348231439,1736406649772,-500.0,0.00019299,3]
[348231440,1736406649782,-7755.26,0.00019299,3]
[348231441,1736406649791,-500.0,0.00019299,3]
[348231442,1736406649800,-500.0,0.00019299,3]
[348231443,1736406649810,-500.0,0.00019299,3]
[348231444,1736406649819,-500.0,0.00019299,3]
[348231445,1736406649828,-500.0,0.00019299,3]
[348231446,1736406649838,-500.0,0.00019299,3]
[348231447,1736406649848,-500.0,0.00019299,3]
[348231448,1736406649857,-507.95,0.00019299,3]
[348231449,1736406649867,-500.0,0.00019299,3]
[348231450,1736406649876,-500.0,0.00019299,3]
[348231451,1736406649886,-757.78,0.00019299,3]
[348231452,1736406649895,-500.0,0.00019299,3]
[348231453,1736406649905,-500.0,0.00019299,3]
[348231454,1736406649914,-500.0,0.00019299,3]
[348231455,1736406649923,-578.26012326,0.00019299,3]
[348231456,1736406649932,-500.0,0.00019299,3]
[348231457,1736406649941,-500.0,0.00019299,3]
[348231458,1736406649951,-500.0,0.00019299,3]
[348231459,1736406649960,-500.0,0.00019299,3]
[348231460,1736406649969,-500.0,0.00019299,3]
[348231461,1736406649980,-500.0,0.00019299,3]
[348231462,1736406649989,-500.0,0.00019299,3]
[348231463,1736406649998,-828.64,0.00019299,3]
[348231464,1736406650007,-500.0,0.00019299,3]
[348231465,1736406650016,-500.0,0.00019299,3]
[348231466,1736406650026,-500.0,0.00019299,3]
[348231467,1736406650035,-500.0,0.00019299,3]
[348231468,1736406650044,-500.0,0.00019299,3]
[348231469,1736406650054,-500.0,0.00019299,3]
[348231470,1736406650063,-39631.7605976,0.000193,5]
[348231472,1736406988229,204.480264,0.00013973,2]
[348231473,1736407536107,-151.0,0.00018083,2]
[348231474,1736407536127,-149.77235679,0.00018093,2]
[348231475,1736407537096,-1030.93599853,0.00018093,2]
[348231478,1736407607525,6437.872,0.00025,120]
[348231479,1736407626123,-255.1739239,0.00018023,2]
[348231480,1736407626146,-300.0,0.00018093,2]
[348231481,1736407626167,-146.40645753,0.00018093,2]
[348231482,1736407632134,-224.03437793,0.00018093,2]
[348231483,1736407637099,-2529.98998954,0.00018093,2]
[348231484,1736407637136,-174.33091028,0.00018093,2]
[348231485,1736407654093,-186.07024193,0.00018093,2]
[348231493,1736407764111,-2033.0906248,0.000176,2]
[348231494,1736407764135,-300.0,0.000176,2]
[348231495,1736407764160,-1159.863273,0.00017915,2]
[348231496,1736407768104,-248.33389238,0.00018058,2]
[348231502,1736407813313,108.16602672,0.00014992,2]
[348231503,1736407813338,91.83397328,0.00014992,2]
[348231537,1736407832779,-687.63293952,0.00018058,2]
[348231538,1736407832789,-240.0,0.00018093,2]
[348231539,1736407832799,-3648.0,0.00018093,2]
[348231540,1736407832809,-24900.0,0.00018094,2]
[348231542,1736407832819,-260.2506721,0.00018212,2]
[348231543,1736407832829,-543.196,0.0001834,2]
[348231544,1736407832839,-242.85187616,0.00018531,2]
[348231545,1736407832848,-338.211,0.00019002,2]
[348231546,1736407832858,-498.47539655,0.00019078,2]
[348231547,1736407832868,-4170.25765073,0.00019078,2]
[348231548,1736407832878,-747.9762431,0.00019106,2]
[348231549,1736407832892,-13199.13035574,0.00019116,2]
[348231550,1736407832902,-154.0,0.00019122,2]
[348231551,1736407832912,-498.47539653,0.00019147,2]
[348231552,1736407832921,-152.0,0.00019153,2]
[348231553,1736407832931,-254.48739482,0.00019166,2]
[348231554,1736407833063,-271.13363096,0.00019173,2]
[348231555,1736407833073,-500.0,0.00019173,2]
[348231556,1736407833082,-209.48098069,0.00019177,2]
[348231557,1736407833092,-221.63521028,0.00019177,2]
[348231558,1736407833101,-649.68542794,0.00019177,2]
[348231559,1736407833111,-30686.05011205,0.00019178,5]
[348231560,1736407833122,-28029.84609844,0.00019178,5]
[348231561,1736407833134,-8145.07672641,0.00019178,5]
[348231562,1736407833144,-503.01129463,0.00019178,2]
[348231563,1736407833154,-457.45006751,0.00019178,2]
[348231564,1736407833163,-321.84887538,0.00019178,2]
[348231565,1736407833173,-500.0,0.00019178,2]
[348231566,1736407833183,-500.0,0.00019178,2]
[348231567,1736407833192,-500.0,0.00019178,2]
[348231568,1736407833202,-500.0,0.00019178,2]
[348231569,1736407833211,-500.0,0.00019178,2]
[348231570,1736407833220,-500.0,0.00019178,2]
[348231571,1736407833230,-500.0,0.00019178,2]
[348231572,1736407833238,-500.0,0.00019178,2]
[348231573,1736407833248,-505.46963539,0.00019178,2]
[348231574,1736407833257,-500.0,0.00019178,2]
[348231575,1736407833266,-534.73934545,0.00019178,2]
[348231576,1736407833274,-504.18648522,0.00019178,2]
[348231577,1736407833283,-500.0,0.00019178,2]
[348231578,1736407833292,-505.01674283,0.00019178,2]
[348231579,1736407833302,-290.59440925,0.00019178,2]
[348231580,1736407833311,-500.0,0.00019178,2]
[348231581,1736407833319,-502.82924439,0.00019178,2]
[348231582,1736407833329,-505.31424948,0.00019178,2]
[348231583,1736407833337,-502.55810365,0.00019178,2]
[348231584,1736407833347,-597.77062871,0.00019178,2]
[348231585,1736407833355,-500.0,0.00019178,2]
[348231586,1736407833364,-200.0,0.00019178,2]
[348231587,1736407833373,-151.54707558,0.00019178,2]
[348231588,1736407833383,-500.0,0.00019178,2]
[348231589,1736407833392,-157.03621937,0.00019178,2]
[348231590,1736407833402,-500.0,0.00019178,2]
[348231591,1736407833410,-225.48182622,0.00019178,2]
[348231592,1736407833419,-500.0,0.00019178,2]
[348231593,1736407833428,-500.0,0.00019178,2]
[348231594,1736407833437,-500.0,0.00019178,2]
[348231595,1736407833446,-500.0,0.00019178,2]
[348231596,1736407833455,-500.0,0.00019178,2]
[348231597,1736407833465,-516.08,0.00019178,2]
[348231598,1736407833474,-561.5037145,0.00019178,2]
[348231599,1736407833482,-500.0,0.00019178,2]
[348231600,1736407833491,-500.0,0.00019178,2]
[348231601,1736407833500,-500.0,0.00019178,2]
[348231602,1736407833511,-500.0,0.00019178,2]
[348231603,1736407833525,-500.0,0.00019178,2]
[348231604,1736407833534,-630.35654412,0.00019178,2]
[348231605,1736407833544,-500.0,0.00019178,2]
[348231606,1736407833553,-500.0,0.00019178,2]
[348231607,1736407833563,-500.0,0.00019178,2]
[348231608,1736407833572,-500.0,0.00019178,2]
[348231609,1736407833582,-500.0,0.00019178,2]
[348231610,1736407833591,-500.0,0.00019178,2]
[348231611,1736407833600,-1666.5,0.00019178,2]
[348231612,1736407833609,-523.77,0.00019178,2]
[348231613,1736407833619,-500.0,0.00019178,2]
[348231614,1736407833628,-500.0,0.00019178,2]
[348231615,1736407833639,-500.0,0.00019178,2]
[348231616,1736407833648,-500.0,0.00019178,2]
[348231617,1736407833657,-512.62452636,0.00019178,2]
[348231618,1736407833667,-500.0,0.00019178,2]
[348231619,1736407833676,-500.0,0.00019178,2]
[348231620,1736407833685,-500.0,0.00019178,2]
[348231621,1736407833694,-500.0,0.00019178,2]
[348231622,1736407833703,-500.0,0.00019178,2]
[348231623,1736407833715,-500.0,0.00019178,2]
[348231624,1736407833724,-501.10048546,0.00019178,2]
[348231625,1736407833733,-276.79950226,0.00019178,2]
[348231626,1736407833742,-500.0,0.00019178,2]
[348231627,1736407833751,-500.0,0.00019178,2]
[348231628,1736407833760,-500.0,0.00019178,2]
[348231629,1736407833770,-500.0,0.00019178,2]
[348231630,1736407833779,-500.0,0.00019178,2]
[348231631,1736407833788,-500.0,0.00019178,2]
[348231632,1736407833796,-500.0,0.00019178,2]
[348231633,1736407833805,-500.0,0.00019178,2]
[348231634,1736407833815,-500.0,0.00019178,2]
[348231635,1736407833824,-500.0,0.00019178,2]
[348231636,1736407833833,-500.0,0.00019178,2]
[348231637,1736407833843,-502.37061154,0.00019178,2]
[348231638,1736407833853,-500.0,0.00019178,2]
[348231639,1736407833862,-500.0,0.00019178,2]
[348231640,1736407833871,-500.0,0.00019178,2]
[348231641,1736407833882,-500.0,0.00019178,2]
[348231642,1736407833892,-500.0,0.00019178,2]
[348231643,1736407833901,-500.0,0.00019178,2]
[348231644,1736407833911,-500.0,0.00019178,2]
[348231645,1736407833921,-500.0,0.00019178,2]
[348231646,1736407833931,-545.13979332,0.00019178,2]
[348231647,1736407833940,-500.0,0.00019178,2]
[348231648,1736407833949,-500.0,0.00019178,2]
[348231649,1736407833959,-500.0,0.00019178,2]
[348231650,1736407833970,-500.0,0.00019178,2]
[348231651,1736407833980,-500.0,0.00019178,2]
[348231652,1736407833990,-322.45356289,0.00019178,2]
[348231653,1736407833999,-501.68967736,0.00019178,2]
[348231654,1736407834009,-500.0,0.00019178,2]
[348231655,1736407834019,-500.0,0.00019178,2]
[348231656,1736407834029,-500.0,0.00019178,2]
[348231657,1736407834038,-500.0,0.00019178,2]
[348231658,1736407834047,-500.0,0.00019178,2]
[348231659,1736407834057,-500.0,0.00019178,2]
[348231660,1736407834066,-503.49483762,0.00019178,2]
[348231661,1736407834075,-500.0,0.00019178,2]
[348231662,1736407834085,-500.0,0.00019178,2]
[348231663,1736407834094,-500.0,0.00019178,2]
[348231664,1736407834104,-500.0,0.00019178,2]
[348231665,1736407834113,-500.0,0.00019178,2]
[348231666,1736407834123,-500.0,0.00019178,2]
[348231667,1736407834133,-500.0,0.00019178,2]
[348231668,1736407834142,-500.0,0.00019178,2]
[348231669,1736407834152,-500.0,0.00019178,2]
[348231670,1736407834161,-503.6688454,0.00019178,2]
[348231671,1736407834171,-500.0,0.00019178,2]
[348231672,1736407834181,-500.0,0.00019178,2]
[348231673,1736407834191,-500.0,0.00019178,2]
[348231674,1736407834200,-500.0,0.00019178,2]
[348231675,1736407834209,-500.0,0.00019178,2]
[348231676,1736407834219,-500.0,0.00019178,2]
[348231677,1736407834228,-500.0,0.00019178,2]
[348231678,1736407834237,-500.0,0.00019178,2]
[348231679,1736407834246,-500.0,0.00019178,2]
[348231680,1736407834256,-244.75826578,0.00019178,2]
[348231681,1736407834265,-515.06365391,0.00019178,2]
[348231682,1736407834275,-500.0,0.00019178,2]
[348231683,1736407834285,-500.0,0.00019178,2]
[348231684,1736407834294,-15594.13,0.00019178,2]
[348231685,1736407834304,-500.0,0.00019178,2]
[348231686,1736407834314,-500.0,0.00019178,2]
[348231687,1736407834324,-500.83129154,0.00019178,2]
[348231688,1736407834333,-500.0,0.00019178,2]
[348231689,1736407834343,-500.0,0.00019178,2]
[348231690,1736407834352,-500.0,0.00019178,2]
[348231691,1736407834362,-188.0,0.00019178,2]
[348231692,1736407834371,-500.0,0.00019178,2]
[348231693,1736407834380,-1471.28,0.00019178,2]
[348231694,1736407834391,-500.0,0.00019178,2]
[348231695,1736407834400,-500.0,0.00019178,2]
[348231696,1736407834409,-151.0,0.00019178,2]
[348231697,1736407834418,-500.0,0.00019178,2]
[348231698,1736407834428,-500.0,0.00019178,2]
[348231699,1736407834437,-500.0,0.00019178,2]
[348231700,1736407834446,-151.0,0.00019178,2]
[348231701,1736407834455,-500.0,0.00019178,2]
[348231702,1736407834464,-500.0,0.00019178,2]
[348231703,1736407834474,-500.0,0.00019178,2]
[348231704,1736407834483,-505.50937111,0.00019178,2]
[348231705,1736407834491,-500.0,0.00019178,2]
[348231706,1736407834500,-500.0,0.00019178,2]
[348231707,1736407834510,-500.0,0.00019178,2]
[348231708,1736407834523,-565.97097761,0.00019178,2]
[348231709,1736407834532,-500.0,0.00019178,2]
[348231710,1736407834540,-500.0,0.00019178,2]
[348231711,1736407834550,-500.0,0.00019178,2]
[348231712,1736407834559,-500.0,0.00019178,2]
[348231713,1736407834568,-500.0,0.00019178,2]
[348231714,1736407834577,-500.0,0.00019178,2]
[348231715,1736407834587,-500.0,0.00019178,2]
[348231716,1736407834597,-500.0,0.00019178,2]
[348231717,1736407834606,-500.0,0.00019178,2]
[348231718,1736407834615,-500.0,0.00019178,2]
[348231719,1736407834625,-500.0,0.00019178,2]
[348231720,1736407834635,-500.0,0.00019178,2]
[348231721,1736407834644,-500.0,0.00019178,2]
[348231722,1736407834653,-500.0,0.00019178,2]
[348231723,1736407834663,-353.79173902,0.00019178,2]
[348231724,1736407834672,-500.0,0.00019178,2]
[348231725,1736407834681,-500.0,0.00019178,2]
[348231726,1736407834690,-501.27086388,0.00019178,2]
[348231727,1736407834699,-500.0,0.00019178,2]
[348231728,1736407834708,-500.0,0.00019178,2]
[348231729,1736407834717,-515.98162082,0.00019178,2]
[348231730,1736407834726,-586.70778169,0.00019178,2]
[348231731,1736407834737,-500.0,0.00019178,2]
[348231732,1736407834751,-500.98506428,0.00019178,2]
[348231733,1736407834760,-500.0,0.00019178,2]
[348231734,1736407834770,-500.0,0.00019178,2]
[348231735,1736407834779,-500.0,0.00019178,2]
[348231736,1736407834788,-151.0,0.00019178,2]
[348231737,1736407834798,-500.0,0.00019178,2]
[348231738,1736407834807,-500.0,0.00019178,2]
[348231739,1736407834816,-500.0,0.00019178,2]
[348231740,1736407834825,-1000.0,0.00019178,2]
[348231741,1736407834835,-734.79,0.00019178,2]
[348231742,1736407834844,-500.0,0.00019178,2]
[348231743,1736407834853,-500.0,0.00019178,2]
[348231744,1736407834863,-500.0,0.00019178,2]
[348231745,1736407834872,-500.0,0.00019178,2]
[348231746,1736407834883,-452.25468756,0.00019178,2]
[348231747,1736407834893,-500.0,0.00019178,2]
[348231748,1736407834903,-500.0,0.00019178,2]
[348231749,1736407834912,-500.0,0.00019178,2]
[348231750,1736407834921,-794.11,0.00019178,2]
[348231751,1736407834930,-500.0,0.00019178,2]
[348231752,1736407834939,-531.45819254,0.00019178,2]
[348231753,1736407834948,-500.0,0.00019178,2]
[348231754,1736407834957,-500.0,0.00019178,2]
[348231755,1736407834966,-500.0,0.00019178,2]
[348231756,1736407834975,-500.0,0.00019178,2]
[348231757,1736407834984,-500.0,0.00019178,2]
[348231758,1736407834994,-1057.71,0.00019178,2]
[348231759,1736407835003,-500.0,0.00019178,2]
[348231760,1736407835012,-501.40886777,0.00019178,2]
[348231761,1736407835021,-500.79910043,0.00019178,2]
[348231762,1736407835030,-218.69938817,0.00019178,2]
[348231763,1736407835039,-943.95,0.00019178,2]
[348231764,1736407835048,-9046.76,0.00019178,2]
[348231765,1736407835057,-500.0,0.00019178,2]
[348231766,1736407835066,-500.0,0.00019178,2]
[348231767,1736407835076,-500.0,0.00019178,2]
[348231768,1736407835085,-500.0,0.00019178,2]
[348231769,1736407835094,-339.02534287,0.00019178,2]
[348231770,1736407835103,-507.61,0.00019178,2]
[348231771,1736407835112,-510.91554734,0.00019178,2]
[348231772,1736407835121,-500.0,0.00019178,2]
[348231773,1736407835131,-504.4058613,0.00019178,2]
[348231774,1736407835141,-500.0,0.00019178,2]
[348231775,1736407835150,-500.0,0.00019178,2]
[348231776,1736407835159,-500.0,0.00019178,2]
[348231777,1736407835167,-500.0,0.00019178,2]
[348231778,1736407835176,-820.26,0.00019178,2]
[348231779,1736407835185,-500.0,0.00019178,2]
[348231780,1736407835194,-500.0,0.00019178,2]
[348231781,1736407835203,-500.0,0.00019178,2]
[348231782,1736407835212,-500.0,0.00019178,2]
[348231783,1736407835221,-636.03693172,0.00019178,2]
[348231784,1736407835230,-500.0,0.00019178,2]
[348231785,1736407835239,-500.0,0.00019178,2]
[348231786,1736407835248,-500.0,0.00019178,2]
[348231787,1736407835258,-500.0,0.00019178,2]
[348231788,1736407835357,-501.83752936,0.00019178,2]
[348231789,1736407835366,-500.0,0.00019178,2]
[348231790,1736407835375,-502.77013542,0.00019178,2]
[348231791,1736407835387,-154.24331916,0.00019178,2]
[348231792,1736407835397,-500.0,0.00019178,2]
[348231793,1736407835406,-500.0,0.00019178,2]
[348231794,1736407835415,-500.0,0.00019178,2]
[348231795,1736407835424,-500.0,0.00019178,2]
[348231796,1736407835434,-569.3494941,0.00019178,2]
[348231797,1736407835443,-622.14930677,0.00019178,2]
[348231798,1736407835452,-500.0,0.00019178,2]
[348231799,1736407835462,-500.0,0.00019178,2]
[348231800,1736407835471,-516.42306772,0.00019178,2]
[348231801,1736407835480,-500.0,0.00019178,2]
[348231802,1736407835490,-500.0,0.00019178,2]
[348231803,1736407835499,-500.0,0.00019178,2]
[348231804,1736407835511,-500.0,0.00019178,2]
[348231805,1736407835521,-500.0,0.00019178,2]
[348231806,1736407835530,-500.0,0.00019178,2]
[348231807,1736407835539,-500.0,0.00019178,2]
[348231808,1736407835548,-501.62925538,0.00019178,2]
[348231809,1736407835557,-500.0,0.00019178,2]
[348231810,1736407835567,-500.0,0.00019178,2]
[348231811,1736407835576,-500.0,0.00019178,2]
[348231812,1736407835586,-500.0,0.00019178,2]
[348231813,1736407835596,-242.8518761,0.00019184,2]
[348231814,1736407835605,-498.47539653,0.00019215,2]
[348231815,1736407835614,-521.0,0.0001924,2]
[348231816,1736407835623,-217.59967633,0.00019273,2]
[348231817,1736407835633,-517.30054264,0.00019273,2]
[348231818,1736407835642,-501.50912896,0.00019273,2]
[348231819,1736407835651,-498.47539653,0.00019284,2]
[348231820,1736407835660,-402.67808904,0.00019298,2]
[348231821,1736407835669,-335.85515072,0.00019298,2]
[348231822,1736407835679,-568.5290599,0.00019299,3]
[348231823,1736407835688,-500.0,0.00019299,3]
[348231824,1736407835697,-500.0,0.00019299,3]
[348231825,1736407835706,-514.8668891,0.00019299,3]
[348231826,1736407835715,-505.54932858,0.00019299,3]
[348231827,1736407835724,-500.0,0.00019299,3]
[348231828,1736407835733,-500.0,0.00019299,3]
[348231829,1736407835743,-500.0,0.00019299,3]
[348231830,1736407835752,-500.48139971,0.00019299,3]
[348231831,1736407835761,-500.0,0.00019299,3]
[348231832,1736407835770,-500.0,0.00019299,3]
[348231833,1736407835779,-500.0,0.00019299,3]
[348231834,1736407835789,-500.0,0.00019299,3]
[348231835,1736407835798,-500.78599156,0.00019299,3]
[348231836,1736407835807,-502.38840931,0.00019299,2]
[348231837,1736407835817,-503.84498176,0.00019299,3]
[348231838,1736407835826,-500.65212205,0.00019299,3]
[348231839,1736407835835,-500.0,0.00019299,3]
[348231840,1736407835845,-500.0,0.00019299,3]
[348231841,1736407835854,-500.51000536,0.00019299,3]
[348231842,1736407835864,-500.0,0.00019299,3]
[348231843,1736407835873,-500.0,0.00019299,3]
[348231844,1736407835884,-500.0,0.00019299,3]
[348231845,1736407835893,-178.5799104,0.00019299,3]
[348231846,1736407835903,-500.0,0.00019299,3]
[348231847,1736407835912,-428.74261144,0.00019299,3]
[348231848,1736407835922,-511.0404367,0.00019299,3]
[348231849,1736407835931,-500.26054105,0.00019299,3]
[348231850,1736407835940,-500.0,0.00019299,3]
[348231851,1736407835949,-500.0,0.00019299,3]
[348231852,1736407835959,-500.0,0.00019299,3]
[348231853,1736407835967,-500.0,0.00019299,3]
[348231854,1736407835977,-500.74583628,0.00019299,3]
[348231855,1736407835986,-500.0,0.00019299,3]
[348231856,1736407835996,-500.0,0.00019299,3]
[348231857,1736407836005,-151.0,0.00019299,2]
[348231858,1736407836015,-302.542245,0.00019299,2]
[348231859,1736407836024,-302.542245,0.00019299,2]
[348231860,1736407836033,-151.0,0.00019299,2]
[348231861,1736407836042,-151.0,0.00019299,2]
[348231862,1736407836051,-247.520734,0.00019299,2]
[348231863,1736407836060,-170.76,0.00019299,3]
[348231864,1736407836069,-1303.626935,0.00019299,2]
[348231865,1736407836078,-1303.626935,0.00019299,2]
[348231866,1736407836087,-500.0,0.00019299,3]
[348231867,1736407836097,-179.045142,0.00019299,2]
[348231868,1736407836106,-179.045142,0.00019299,2]
[348231869,1736407836115,-151.0,0.00019299,2]
[348231870,1736407836124,-151.0,0.00019299,2]
[348231871,1736407836135,-151.0,0.00019299,2]
[348231872,1736407836144,-500.0,0.00019299,3]
[348231873,1736407836153,-2648.56,0.00019299,3]
[348231874,1736407836161,-162339.6194024,0.000193,5]
[348231875,1736407836171,-3733.77,0.000193,2]
[348231876,1736407836180,-9101.14,0.000193,2]
[348231877,1736407836190,-151.0,0.000193,2]
[348231878,1736407836199,-151.0,0.000193,2]
[348231879,1736407836208,-480.531299,0.000193,2]
[348231880,1736407836217,-480.531299,0.000193,2]
[348231881,1736407836226,-151.0,0.000193,2]
[348231882,1736407836235,-151.0,0.000193,2]
[348231883,1736407836244,-151.0,0.000193,2]
[348231884,1736407836253,-159.57523,0.000193,2]
[348231885,1736407836262,-151.0,0.000193,2]
[348231886,1736407836271,-151.0,0.000193,2]
[348231887,1736407836281,-151.0,0.000193,2]
[348231888,1736407836290,-1901.59026,0.000193,2]
[348231889,1736407836300,-1901.59026,0.000193,2]
[348231890,1736407836310,-151.0,0.000193,2]
[348231891,1736407836320,-535.875842,0.000193,2]
[348231892,1736407836330,-535.875842,0.000193,2]
[348231893,1736407836340,-535.875842,0.000193,2]
[348231894,1736407836350,-535.875842,0.000193,2]
[348231895,1736407836361,-151.0,0.000193,2]
[348231896,1736407836373,-302.542245,0.000193,2]
[348231897,1736407836385,-302.542245,0.000193,2]
[348231898,1736407836395,-151.0,0.000193,2]
[348231899,1736407836405,-151.0,0.000193,2]
[348231900,1736407836414,-151.0,0.000193,2]
[348231901,1736407836425,-1303.626935,0.000193,2]
[348231902,1736407836435,-1303.626935,0.000193,2]
[348231903,1736407836445,-179.045142,0.000193,2]
[348231904,1736407836454,-179.045142,0.000193,2]
[348231905,1736407836463,-236.383036,0.000193,2]
[348231906,1736407836472,-151.0,0.000193,2]
[348231907,1736407836482,-151.0,0.000193,2]
[348231908,1736407836491,-737.7969307,0.00019359,2]
[348231909,1736407836501,-343.04665242,0.00019372,2]
[348231910,1736407836514,-668.48301183,0.00019443,2]
[348231911,1736407836523,-1000.0,0.00019446,2]
[348231912,1736407836533,-1000.0,0.00019449,2]
[348231913,1736407836542,-151.0,0.00019452,2]
[348231914,1736407836551,-151.0,0.00019452,2]
[348231915,1736407836561,-151.0,0.00019452,2]
[348231916,1736407836570,-500.0,0.00019452,3]
[348231917,1736407836580,-500.0,0.00019452,3]
[348231918,1736407836591,-500.0,0.00019452,3]
[348231919,1736407836600,-151.0,0.00019452,2]
[348231920,1736407836609,-500.0,0.00019452,3]
[348231921,1736407836619,-314.05,0.00019452,3]
[348231922,1736407836627,-1901.59026,0.00019452,2]
[348231923,1736407836638,-1901.59026,0.00019452,2]
[348231924,1736407836647,-151.0,0.00019452,2]
[348231925,1736407836656,-500.0,0.00019452,3]
[348231926,1736407836665,-535.875842,0.00019452,2]
[348231927,1736407836674,-535.875842,0.00019452,2]
[348231928,1736407836684,-1666.5,0.00019452,3]
[348231929,1736407836693,-151.0,0.00019452,2]
[348231930,1736407836702,-302.542245,0.00019452,2]
[348231931,1736407836712,-302.542245,0.00019452,2]
[348231932,1736407836722,-151.0,0.00019452,2]
[348231933,1736407836731,-151.0,0.00019452,2]
[348231934,1736407836740,-151.0,0.00019452,2]
[348231935,1736407836749,-202.02447947,0.00019452,3]
[348231936,1736407836758,-500.0,0.00019452,3]
[348231937,1736407836767,-500.0,0.00019452,3]
[348231938,1736407836776,-1303.626935,0.00019452,2]
[348231939,1736407836786,-1303.626935,0.00019452,2]
[348231940,1736407836795,-500.0,0.00019452,3]
[348231941,1736407836804,-500.0,0.00019452,3]
[348231942,1736407836813,-500.0,0.00019452,3]
[348231943,1736407836822,-500.0,0.00019452,3]
[348231944,1736407836831,-179.045142,0.00019452,2]
[348231945,1736407836840,-179.045142,0.00019452,2]
[348231946,1736407836849,-500.0,0.00019452,3]
[348231947,1736407836858,-15594.13,0.00019452,2]
[348231948,1736407836867,-500.0,0.00019452,3]
[348231949,1736407836876,-500.0,0.00019452,3]
[348231950,1736407836886,-1471.28,0.00019452,3]
[348231951,1736407836896,-151.0,0.00019452,2]
[348231952,1736407836905,-151.0,0.00019452,2]
[348231953,1736407836914,-500.0,0.00019452,3]
[348231954,1736407836924,-151.0,0.00019452,2]
[348231955,1736407836933,-151.0,0.00019452,2]
[348231956,1736407836942,-500.0,0.00019452,3]
[348231957,1736407836952,-500.0,0.00019452,3]
[348231958,1736407836961,-220.14,0.00019452,3]
[348231959,1736407836970,-500.0,0.00019452,3]
[348231960,1736407836980,-499.06,0.00019452,3]
[348231961,1736407836990,-500.0,0.00019452,3]
[348231962,1736407837000,-500.0,0.00019452,3]
[348231963,1736407837010,-500.0,0.00019452,3]
[348231964,1736407837019,-558.2,0.00019452,3]
[348231965,1736407837028,-467.8,0.00019452,3]
[348231966,1736407837037,-500.0,0.00019452,3]
[348231967,1736407837046,-734.79,0.00019452,3]
[348231968,1736407837056,-500.0,0.00019452,3]
[348231969,1736407837065,-500.0,0.00019452,3]
[348231970,1736407837075,-500.0,0.00019452,3]
[348231971,1736407837085,-500.0,0.00019452,3]
[348231972,1736407837095,-794.11,0.00019452,3]